Cogmind - Beta 13 @@@ ROGUE MODE // 2024.03.08 @ 11:01:03 Player: Mogwok Wargfriend Result: Destroyed by Y-54 Guardian with Flak Gun Performance ------------- Evolutions (3) 1500 Regions Visited (4) 800 Robots Destroyed (112) 560 Value Destroyed (3307) 3307 Prototype IDs (4) 80 Alien Tech Used (0) 0 Bonus (44) 44 TOTAL SCORE: 6291 Bonus ------- High Alert Combat Kills 44 Cogmind --------- Core Integrity 0/700 Matter 300/300 Energy 95/100 System Corruption 14% Temperature Cool (18) Movement Core (200) Ox3 Location -7/Factory Parts ------- > --- POWER (1) -------- (None) > --- PROPULSION (4) --- (None) > --- UTILITY (6) ------ Small Storage Unit Visual Processing Unit Improved Melee Analysis Suite Core Analyzer Backup Plating III > --- WEAPON (2) ------- Heavy Flail Katana > --- INVENTORY (8) ---- Light Ion Engine Light Nuclear Core Small Storage Unit Transmission Jammer Medium Reactive Plating Hacking Suite Assault Rifle Peak State ------------ > --- POWER ------------ Light Nuclear Core > --- PROPULSION ------- Carbon-fiber Leg Titanium Leg Titanium Leg Improved Titanium Leg > --- UTILITY ---------- Improved Heat Sink Advanced Heat Sink Small Storage Unit Improved Melee Analysis Suite Layered Light Armor Plating Medium Reactive Plating > --- WEAPON ----------- Power Maul Scythe > --- INVENTORY -------- Carbon-fiber Leg Carbon-fiber Leg Improved Heat Sink Small Storage Unit Transmission Jammer Hacking Suite Assault Rifle Heavy Flail [Rating: 46] Favorites ----------- Power Light Nuclear Core Engine Improved Ion Engine Power Core Light Nuclear Core Propulsion Titanium Leg Treads Light Treads Leg Titanium Leg Wheel Compact Wheel Utility Hacking Suite Device Advanced Heat Sink Storage Small Storage Unit Processor Improved Melee Analysis Suite Hackware Hacking Suite Protection Light Armor Plating Weapon Scythe Energy Gun EM Pulse Gun Energy Cannon Ion Cannon Ballistic Gun Assault Rifle Launcher Grenade Launcher Impact Weapon Mace Slashing Weapon Scythe Build | -11 -10 -9 -8 -7 ------- Run | Yrd Mat Mat Mat Fac Slots Evolved 6 | . . 2 2 2 Power . | . . . . . Propulsion 2 | . . 1 . 1 Utility 4 | . . 1 2 1 Weapon . | . . . . . Parts Attached 102 | 6 7 11 37 41 Power 15 | 1 1 1 6 6 Engine 7 | 1 1 1 3 1 Core 8 | . . . 3 5 Reactor . | . . . . . Propulsion 30 | 2 1 4 12 11 Treads 1 | . . 1 . . Leg 28 | 2 1 3 12 10 Wheel 1 | . . . . 1 Hover . | . . . . . Flight . | . . . . . Utility 33 | 1 3 1 10 18 Device 10 | 1 1 . 3 5 Storage 4 | . 1 . 2 1 Processor 8 | . 1 . 1 6 Hackware 3 | . . 1 2 . Protection 8 | . . . 2 6 Artifact . | . . . . . Weapon 24 | 2 2 5 9 6 Energy Gun 3 | 1 . 2 . . Energy Cannon 2 | . . 1 1 . Ballistic Gun 5 | 1 1 2 1 . Ballistic Cannon . | . . . . . Launcher 3 | . 1 . 2 . Special Weapon . | . . . . . Impact Weapon 6 | . . . 2 4 Slashing Weapon 5 | . . . 3 2 Piercing Weapon . | . . . . . Special Melee Weapon . | . . . . . Unidentified Prototypes 2 | . . 1 1 . Corrupted Parts 5 | . . 3 . 2 System Corruption 18 | . . 9 . 9 Parts Lost 38 | . 1 3 9 25 Power 8 | . 1 . 3 4 Propulsion 9 | . . 1 . 8 Utility 16 | . . . 5 11 Weapon 5 | . . 2 1 2 Highest Loss Streak 11 | . 1 1 3 11 To Critical Strikes . | . . . . . Average Slot Usage (%) 92 | . 91 97 94 88 Engine 3 | . 6 11 4 . Core 3 | . . . 4 6 Leg 26 | . 28 31 26 24 Device 6 | . 13 . 4 8 Storage 9 | . 6 11 11 7 Processor 8 | . 7 11 2 12 Hackware 8 | . . 10 21 1 Protection 4 | . . . 2 8 Energy Gun 2 | . 4 13 . . Energy Cannon 1 | . . 4 3 . Ballistic Gun 3 | . 14 2 2 . Launcher 1 | . 9 . . . Impact Weapon 4 | . . . 5 7 Slashing Weapon 4 | . . . 5 7 Naked Turns . | . . . . . Heaviest Build 46 | 7 14 19 25 46 Greatest Support 69 | 20 20 30 51 69 Greatest Overweight (x) 8 | . . . 7 8 Average Overweight (x) . | . . . . . Largest Inventory Capacity 8 | 5 5 5 8 8 Average Capacity 7 | 5 5 5 7 8 Most Carried 8 | 5 5 5 8 8 Average Carried 6 | 2 4 4 7 7 Final Capacity 8 | 5 5 5 8 8 Final Carried 8 | 5 5 5 8 7 Class Distribution -------------------- 32% | Scavenger-Mutant 21% | Gladiator 15% | Mutant 15% | Scavenger-Gladiator 14% | Hacker-Mutant Dominant Class ---------------- Mutant | -10/Materials Scavenger-Mutant | -9/Materials Scavenger-Mutant | -8/Materials Gladiator | -7/Factory Resources | -11 -10 -9 -8 -7 ----------- Run | Yrd Mat Mat Mat Fac Matter Collected 1598 | 266 97 389 465 381 Remotely . | . . . . . Salvage Created 4007 | 35 269 564 1426 1713 Parts 177 | 4 29 41 60 43 Haulers Intercepted 3 | . 1 . 1 1 Recyclers Shooed 7 | . 4 1 1 1 Parts Field Recycled . | . . . . . Retrieved Matter . | . . . . . Parts Self-Destructed . | . . . . . Prevented . | . . . . . Kills | -11 -10 -9 -8 -7 ------- Run | Yrd Mat Mat Mat Fac Combat Hostiles Destroyed 73 | 1 10 12 27 23 Melee 28 | . . . 14 14 Guns 11 | 1 1 6 3 . Cannons 6 | . . 2 4 . AOE 11 | . 9 2 . . Classes Destroyed 15 | 1 6 1 4 3 Worker 10 | . 3 1 3 3 Builder 4 | . . . 3 1 Tunneler 1 | . . . 1 . Hauler 3 | . 1 . 1 1 Recycler 11 | . 1 1 1 8 Mechanic 2 | . . . . 2 Operator 5 | . 1 2 2 . Watcher 3 | . 1 1 . 1 Swarmer 16 | . 6 4 3 3 Grunt 34 | 1 4 6 13 10 Duelist 2 | . . . 2 . Sentry 9 | . . 2 6 1 Specialist 3 | . . . . 3 Hunter 6 | . . . 3 3 Programmer 3 | . . . . 3 Best Kill Streak 10 | 1 4 10 5 7 Combat Bots Only 5 | 1 3 5 3 4 Max Kills in Single Turn 4 | 1 4 2 1 1 Gunslinging . | . . . . . Exploded 3 | . 3 1 . . Melee 1 | . . . 1 1 Uniques/NPCs Destroyed . | . . . . . Combat | -11 -10 -9 -8 -7 -------- Run | Yrd Mat Mat Mat Fac Hostile Shots Fired 719 | 2 30 63 152 472 Missed 219 | . 9 14 40 156 Damage Taken 6309 | 21 213 568 1808 3699 Core 1359 | . 49 135 471 704 Absorbed by Shields . | . . . . . Ignored by Resistances 198 | . . . . 198 Regen/Repaired (Parts) 111 | . . . 36 75 Core Remaining (%) 65 | 100 80 66 14 . Volleys Fired 123 | 2 34 48 39 . Largest 2 | 2 2 2 2 . Hottest 96 | 60 50 96 83 . Shots Fired 221 | 4 52 87 78 . Gun 136 | 4 34 59 39 . Cannon 67 | . . 28 39 . Launcher 18 | . 18 . . . Special . | . . . . . Kinetic 90 | 2 34 15 39 . Thermal 33 | 2 . . 31 . Explosive 18 | . 18 . . . Electromagnetic 80 | . . 72 8 . Robot Hit Streak 10 | 2 5 10 4 . Robot Miss Streak 5 | 1 4 4 5 . Penetration Max . | . . . . . Secondary Targets . | . . . . . Shots Hit Robots 277 | 3 19 49 107 99 Core Hits 96 | 2 26 20 26 22 Critical Kills 5 | . . . 3 2 Critical Parts Destroyed 24 | . . . 7 17 Critical Strikes 36 | . . 1 12 23 Corrupt 1 | . . 1 . . Smash 30 | . . . 10 20 Sever 5 | . . . 2 3 Melee Attacks 244 | . . . 100 144 Impact 182 | . . . 79 103 Slashing 62 | . . . 21 41 Piercing . | . . . . . Sneak Attacks 28 | . . . 10 18 Combat Hostiles . | . . . . . Follow-up Attacks 33 | . . . 16 17 Damage Inflicted 10029 | 48 967 997 3127 4890 Guns 850 | 48 175 395 232 . Cannons 773 | . . 452 321 . Explosions 1028 | . 792 146 90 . Melee 7373 | . . . 2483 4890 Ramming 5 | . . 4 1 . Kinetic 529 | 26 175 96 232 . Thermal 441 | 22 . 146 273 . Explosive 792 | . 792 . . . Electromagnetic 889 | . . 751 138 . Impact 5878 | . . . 1949 3929 Slashing 1495 | . . . 534 961 Piercing . | . . . . . Highest Corruption 14 | . 1 9 . 14 Average Corruption 6 | . 1 8 . 9 Corruption Purged . | . . . . . Corruption Blocked . | . . . . . Effects 28 | . 1 4 . 23 Message Errors 5 | . . 1 . 4 Matter Fused 9 | . . 2 . 7 Heat Flow Errors 2 | . . . . 2 Energy Discharges 6 | . . 1 . 5 Data Loss (minor) 3 | . 1 . . 2 Data Loss (major) 1 | . . . . 1 Misdirections 2 | . . . . 2 Overload Shots . | . . . . . Overflow Damage 2133 | . . . 605 1528 Projectiles 16 | . . . 16 . Explosions 117 | . . . 117 . Melee 2000 | . . . 472 1528 Knockbacks 22 | . . . 6 16 Impact 22 | . . . 6 16 Kinetic . | . . . . . Secondary . | . . . . . Self-Inflicted Damage 161 | . 10 40 111 . Shots 3 | . 1 1 1 . Rammed . | . . . . . Targets Rammed 3 | . . 2 1 . Kicked 3 | . . 2 1 . Crushed . | . . . . . Highest Temperature 226 | 6 4 226 36 148 Average Temperature 49 | 4 2 62 10 66 Received Heat Transfer 1632 | 12 60 153 504 903 Siege Activations . | . . . . . Robots Corrupted 2 | . . 2 . . Combat Hostiles 2 | . . 2 . . Parts Fried 45 | . . 6 22 17 Impact Corruptions 74 | . . . 23 51 Robots Melted . | . . . . . Combat Hostiles . | . . . . . Parts Melted 1 | . . . 1 . Heat Transferred 696 | 50 . 250 396 . Parts Sabotaged . | . . . . . Parts Stolen . | . . . . . Parts Stripped . | . . . . . Power Chain Reactions 2 | . . 2 . . Alert | -11 -10 -9 -8 -7 ------- Run | Yrd Mat Mat Mat Fac Peak Influence 482 | 20 315 327 482 445 Initial 217 | . 13 132 137 217 Average 200 | 4 138 184 222 217 Maximum Alert Level 2 | . 1 1 2 2 Low Security (%) 48 | 100 70 66 40 39 Level 1 46 | . 29 33 49 56 Level 2 4 | . . . 9 4 Level 3 . | . . . . . Level 4 . | . . . . . Level 5 . | . . . . . High Security . | . . . . . Max Security . | . . . . . Squads Dispatched 14 | . 1 3 4 6 Investigation 3 | . . 1 2 . Extermination 4 | . . . . 4 Reinforcement 7 | . 1 2 2 2 Assault . | . . . . . Garrison . | . . . . . Intercept . | . . . . . Searches Triggered . | . . . . . Construction Impeded 1 | . . 1 . . Haulers Reinforced . | . . . . . Active Scanning Responses . | . . . . . Cargo Convoy Interrupts 1 | . . . . 1 Stealth | -11 -10 -9 -8 -7 --------- Run | Yrd Mat Mat Mat Fac Distress Signals 5 | . . 2 2 1 Communications Jammed . | . . . . . Distress Signals . | . . . . . Times Spotted 121 | 1 17 16 44 43 Peak Tracking Total 7 | 1 4 4 5 7 Tactical Retreats 17 | . . . 9 8 Traps | -11 -10 -9 -8 -7 ------- Run | Yrd Mat Mat Mat Fac Traps Triggered 3 | . 1 . 1 1 Indirectly . | . . . . . Trap Hack Attempts . | . . . . . Triggered . | . . . . . Disarmed . | . . . . . Reprogrammed . | . . . . . Reused . | . . . . . Traps Extracted . | . . . . . Installed . | . . . . . Triggered 2 | . . . . 2 Machines | -11 -10 -9 -8 -7 ---------- Run | Yrd Mat Mat Mat Fac Machines Disabled 11 | . 5 3 3 . Max in Single Turn 2 | . 1 1 2 . Machines Repaired . | . . . . . Machines Dismantled . | . . . . . Machines Sabotaged . | . . . . . Overloaded Fab Kills . | . . . . . Hacking | -11 -10 -9 -8 -7 --------- Run | Yrd Mat Mat Mat Fac Machines Accessed 20 | . 2 6 6 6 Terminals 13 | . 2 5 3 3 Fabricators . | . . . . . Repair Stations 2 | . . . 1 1 Recycling Units 2 | . . 1 1 . Scanalyzers 2 | . . . 1 1 Garrison Access 1 | . . . . 1 Total Hacks 49 | . 6 13 14 16 Successful 27 | . 4 5 6 12 Failed 22 | . 2 8 8 4 Catastrophic 6 | . . 3 1 2 Database Lockouts . | . . . . . Manual 25 | . 6 9 7 3 Terminals 33 | . 6 12 9 6 Fabricators . | . . . . . Repair Stations 5 | . . . 2 3 Recycling Units 2 | . . 1 1 . Scanalyzers 8 | . . . 2 6 Garrison Access 1 | . . . . 1 Terminal Hacks 11 | . 3 3 2 3 Record 1 | . . 1 . . Part Schematic 1 | . . . 1 . Robot Analysis 3 | . 2 . . 1 Prototype ID Bank 1 | . 1 . . . Level Access Points 1 | . . . . 1 Unreport Threat 1 | . . . 1 . Locate Traps 2 | . . 1 . 1 Zone Layout 1 | . . 1 . . Fabricator Hacks . | . . . . . Repair Station Hacks 5 | . . . 2 3 Scan Component 3 | . . . 1 2 Repair 2 | . . . 1 1 Recycling Unit Hacks 2 | . . 1 1 . Report Inventory 2 | . . 1 1 . Scanalyzer 5 | . . . . 5 Insert Component 3 | . . . . 3 Analyze 2 | . . . . 2 Garrison Access Hacks . | . . . . . Unauthorized Hacks 4 | . 1 1 1 1 Terminals 3 | . 1 1 1 . Assimilate 3 | . 1 1 1 . Fabricators . | . . . . . Repair Stations . | . . . . . Recycling Units . | . . . . . Scanalyzers . | . . . . . Garrison Access 1 | . . . . 1 Reprogram 1 | . . . . 1 Data Cores Recovered 1 | . . 1 . . Used 1 | . . 1 . . Hacking Detections 18 | . 2 5 5 6 Full Trace Events 1 | . . 1 . . Feedback Events . | . . . . . Feedback Blocked . | . . . . . Robot Schematics Acquired . | . . . . . Robots Built . | . . . . . Authchips . | . . . . . Time . | . . . . . Total Robot Build Rating . | . . . . . Part Schematics Acquired 3 | . . . 1 2 Parts Built . | . . . . . Authchips . | . . . . . Time . | . . . . . Total Part Build Rating . | . . . . . Parts Repaired 2 | . . . 1 1 Time 76 | . . . 38 38 Parts Recycled . | . . . . . Recycled Matter . | . . . . . Retrieved Matter . | . . . . . Retrieved Components . | . . . . . Parts Scanalyzed 2 | . . . . 2 Part Schematics Acquired 2 | . . . . 2 Parts Damaged . | . . . . . Bothacking | -11 -10 -9 -8 -7 ------------ Run | Yrd Mat Mat Mat Fac Used RIF Installer . | . . . . . Robots Hacked . | . . . . . Non-combat . | . . . . . Combat . | . . . . . Robot Hacks Applied . | . . . . . Relay Couplers Released . | . . . . . Fabnet Peak Effective % . | . . . . . Robots Rewired . | . . . . . Allies Hacked . | . . . . . Hacks Repelled . | . . . . . Allies | -11 -10 -9 -8 -7 -------- Run | Yrd Mat Mat Mat Fac Total Allies . | . . . . . Largest Group . | . . . . . Highest-Rated Group . | . . . . . Highest-Rated Ally . | . . . . . Total Orders . | . . . . . Ally Attacks . | . . . . . Total Damage . | . . . . . Kills . | . . . . . Allies Corrupted . | . . . . . Allies Melted . | . . . . . Intel | -11 -10 -9 -8 -7 ------- Run | Yrd Mat Mat Mat Fac Robot Analysis Total 3 | . 2 . . 1 Derelict Logs Recovered . | . . . . . Drone Launches . | . . . . . Drone Recoveries . | . . . . . Exploration | -11 -10 -9 -8 -7 ------------- Run | Yrd Mat Mat Mat Fac Turns Passed 5205 | 101 684 700 1703 2017 Spaces Moved 3035 | 80 461 437 942 1115 Core 29 | 21 . . 2 6 Treads . | . . . . . Legs 2928 | 59 461 437 940 1031 Wheels 78 | . . . . 78 Hover . | . . . . . Flight . | . . . . . Fastest Speed 50 | 50 120 120 120 100 Average Speed 125 | 101 120 120 122 133 Slowest Speed 450 | 120 120 120 400 450 Overloaded Moves . | . . . . . Propulsion Burnouts . | . . . . . Robots Hopped . | . . . . . Cave-ins Triggered . | . . . . . Exploration Rate (%) 41 | 7 74 36 60 32 Regions Visited 4 Branch Regions . Pre-discovered Areas . | . . . . . Known Exits Taken . | . . . . . Unknown Exits Taken 4 | 1 1 1 1 . Scrap Searched . | . . . . . Spaces Dug 20 | . 5 . 7 8 Terrain Destroyed 126 | . 87 2 29 8 Melee 13 | . . . 5 8 Projectile 9 | . . . 9 . AOE 104 | . 87 2 15 . Terrain Rammed . | . . . . . Walls Destroyed . | . . . . . Machines Disabled . | . . . . . Actions | -11 -10 -9 -8 -7 --------- Run | Yrd Mat Mat Mat Fac Total 3854 | 94 543 523 1267 1427 Wait 304 | . 26 20 129 129 Move 3031 | 79 460 436 941 1115 Hop . | . . . . . Pick Up 32 | 6 6 2 9 9 Fast Attach 61 | 6 4 5 25 21 Attach 19 | . . 3 3 13 Detach 16 | . 1 1 7 7 Swap 22 | . 3 3 9 7 Drop 45 | 1 9 3 22 10 Fire 123 | 2 34 48 39 . Melee 198 | . . . 82 116 Ram . | . . . . . Kick 3 | . . 2 1 . Crush . | . . . . . Escape Stasis . | . . . . . Rewire . | . . . . . Trap . | . . . . . Miscellaneous . | . . . . . Route ------- -11/Scrapyard -10/Materials (discovered 3 exits: *Mat x2 / [*Min]) -9/Materials (discovered 2 exits: *Mat / [*Min]) -8/Materials (discovered 2 exits: *Fac x2) -7/Factory (discovered 4 exits: Fac x4) History --------- Turn | Location | Event 2 | -11/Scrapyard | Met Revision 17 69 | -11/Scrapyard | Discovered new exit (range 8) 102 | -11/Scrapyard | Entered Materials 310 | -10/Materials | Discovered new exit (range 9) 333 | -10/Materials | Build established: Mutant 495 | -10/Materials | Discovered new exit (range 18) 557 | -10/Materials | Discovered new exit (range 8) 786 | -10/Materials | Entered another Materials area 786 | -9/Materials | Evolved 2 slots: Propulsion x1, Utility x1 1099 | -9/Materials | Discovered new exit (range 17) 1108 | -9/Materials | Build established: Scavenger-Mutant 1313 | -9/Materials | Discovered new exit (range 9) 1486 | -9/Materials | Entered another Materials area 1486 | -8/Materials | Evolved 2 slots: Utility x2 1647 | -8/Materials | Lost 3 parts (2p1w) 2045 | -8/Materials | Discovered new exit (range 3) 2163 | -8/Materials | Build established: Hacker-Mutant 2446 | -8/Materials | Core integrity fell below 50% 2912 | -8/Materials | Build established: Scavenger-Mutant 2963 | -8/Materials | Repaired Scythe 3073 | -8/Materials | Core integrity fell below 20% 3176 | -8/Materials | Discovered new exit (range 11) 3189 | -8/Materials | Entered Factory 3189 | -7/Factory | Evolved 2 slots: Propulsion x1, Utility x1 4073 | -7/Factory | Repaired Carbon-fiber Leg 4094 | -7/Factory | Build established: Gladiator 4316 | -7/Factory | Identified exit to Factory 4422 | -7/Factory | Lost 3 parts (1p2u) 4641 | -7/Factory | Cargo convoy interrupted 4721 | -7/Factory | Core integrity fell below 50% 4768 | -7/Factory | System corruption reached 10% 4779 | -7/Factory | Lost 11 parts (1p5n5u) 5083 | -7/Factory | Core integrity fell below 20% 5206 | -7/Factory | Destroyed by Y-54 Guardian with Flak Gun Last Messages --------------- 05150_ ALERT: Suspicious intruders detected, dispatching Specialist reinforcements to area. 05157_ ALERT: Hostiles spotted, dispatching reinforcements to Terminal F010. 05172_ Power Maul destroyed. 05172_ Hrd. Medium Armor Plating destroyed. 05186_ Destroyed Imp. Heat Sink. 05186_ Y-54 Guardian system corrupted by crushing effect. 05187_ K-01 Serf cleans the Manufacturing Mainframe. 05187_ Y-54 Guardian misfires. 05189_ ALERT: Rogue bot located, Programmers report to Factory Zone 5E. 05193_ Katana follow-up attack on Y-54 Guardian. 05193_ Com. Wheel destroyed. 05201_ K-01 Serf cleans the Manufacturing Mainframe. 05204_ Lgt. Deuterium Engine destroyed. 05205_ XV:4UBE2MMDB/DXEDW,MYD:WJW2Q Map ----- +----------------------------------------------------+ | ?????????????????" ????????????????????????????? | | ????????????????"" ????????????????????????????? | | ???????????? ??""" ??#????????????????????????? | | ???????????# #????????????????????????? | | ???????????# """" """" #????????????????????????? | | ???????????# """" """" #????????????????????????? | | ???????????? """" """" #????????????????????????? | | ??????????????"""" """"??????????????????????????? | | ???????????????? ????????????????????????????? | | ##################+###???????????????????????????? | | % ######??########????????????? | | #?? #????????????? | | [[[ #?""" #????????????? | | % %% """ [[[ #?"R !!#????????????? | | % % """ [[ # """ !!#????????????? | | #### #### % """ # #????????????? | | ???# #??# """ + #???????????? | | ####/##?# # #????????????? | | #?# """^""" # #????????????? | | ! #?# """ """ ###+#########+##????????????? | | #?# """ """ # k #?????????????? | | #?# """ """ # """" """" #?????????????? | | #?# # """" """"???????????????? | | #?# """ """ # """" """" ??????????????? | | #?# """ """ #!Yx"""" """" #?????????????? | | #?# """ """ # @ x #?????????????? | | "" #?# """ """ ###############?????????????? | | T" #?# ? ????????????????????????????? | | "" #?# ? ?? ????????????????????????????? | | #?# ?? ?????????????????????????????? | | ######### ???????????????????????????????????? | | "??????????????????????????????????? | | ???????????????????????????????????? | | ???????????????????????????????????? | | ???????????????????????????????????? | | ?????????????????????????????????????? | | ####+######??????????????????????????????????????? | | ?????????????????????????????????????????????????? | | ?????????????????????????????????????????????????? | | ?????????????????????????????????????????????????? | | ?????????????????????????????????????????????????? | | ?????????????????????????????????????????????????? | | ?????????????????????????????????????????????????? | | ?????????????????????????????????????????????????? | | ?????????????????????????????????????????????????? | | ?????????????????????????????????????????????????? | | ?????????????????????????????????????????????????? | | ?????????????????????????????????????????????????? | | ?????????????????????????????????????????????????? | | ?????????????????????????????????????????????????? | +----------------------------------------------------+ Best States ------------- Heat Dissipation 67 Energy Generation 14 Energy Capacity 530 Matter Stores 300 Matter Capacity 300 Sight Range 18 Terrain Scan Range 14 Terrain Scan Density 10 Armor Coverage 600 Resistance: KI 30 Evasion (%) 55 Melee Accuracy 16 Offensive Hacking 30 Item Schematics ----------------- System Shield | -8/Materials | Hacked Mace | -7/Factory | Scanalyzed Lyr. Light Armor Plating | -7/Factory | Scanalyzed Robot Schematics ------------------ None Fabricated ------------ Nothing Alien Tech Used ----------------- None Achievements -------------- None Challenges ------------ None Game ------ Seed BombHeatLance Manual? 0 Play Time 00:51:52 Cumulative 81.1 hours Start 2024.03.08 @ 09:59:41 End 2024.03.08 @ 11:01:03 Sessions 1 Manual Loads 0 Difficulty Rogue Special Mode None Game No. 83 Rogue 83 Adventurer 0 Explorer 0 Win Type - Total 0 Types 0/0/0/0/0/0/0/0/0 Lore% 32 Gallery% 46 Achievement% 32 Wizard Run 0 Options --------- Layout 2 ASCII 1 Keyboard 1 Movement Numpad Keybinds 0 Fullscreen 2 Font 32/TamsynBold Map View 50x44 Zoom Use 0% Tactical HUD 1 Map Filters NONE Filters NONE Steam 1 RUN: ca5299c5-8a68-4aa7-b261-c05844913edd